bitfinex/quotes_BTCUSD_20240620
["timestamp","ask_amount","ask_price","bid_price","bid_amount"]
[1718841856032,0.64041286,64989.0,64988.0,0.155546]
[1718841856303,0.64041286,64989.0,64988.0,0.255546]
[1718841856715,0.64041286,64989.0,64988.0,0.155546]
[1718841857160,0.64041286,64989.0,64988.0,0.255546]
[1718841857361,0.64141286,64989.0,64988.0,0.161546]
[1718841857608,1.35181565,64989.0,64988.0,0.012946]
[1718841858219,1.45181565,64989.0,64988.0,0.012946]
[1718841858830,1.45661565,64989.0,64988.0,0.012946]
[1718841859181,1.76435965,64989.0,64988.0,0.012946]
[1718841859390,1.85185965,64989.0,64988.0,0.012946]
[1718841859592,1.86462954,64989.0,64988.0,0.012946]
[1718841860508,1.86362954,64989.0,64988.0,0.006946]
[1718841860917,1.86362954,64989.0,64988.0,0.000946]
[1718841860918,1.86262954,64989.0,64988.0,0.000946]
[1718841861397,1.86662954,64989.0,64988.0,0.000946]
[1718841861574,1.86262954,64989.0,64988.0,0.000946]
[1718841861775,1.84985965,64989.0,64988.0,0.000946]
[1718841861978,1.87162772,64989.0,64988.0,0.000946]
[1718841862218,1.86662772,64989.0,64988.0,0.000946]
[1718841862532,1.87562772,64989.0,64988.0,0.000946]
[1718841862735,1.87162772,64989.0,64988.0,0.000946]
[1718841863210,1.88062772,64989.0,64988.0,0.001946]
[1718841864191,1.88062759,64989.0,64988.0,0.001946]
[1718841868877,1.88148759,64989.0,64988.0,0.001946]
[1718841870137,1.90990025,64989.0,64988.0,0.001946]
[1718841871118,1.077254,64980.0,64979.0,0.000946]
[1718841871451,1.323054,64980.0,64979.0,0.000946]
[1718841872560,1.323054,64980.0,64979.0,0.002946]
[1718841872819,1.323054,64980.0,64979.0,0.005946]
[1718841873380,1.329114,64980.0,64979.0,0.005946]
[1718841874286,1.48166814,64980.0,64979.0,0.005946]
[1718841875382,1.78945514,64980.0,64979.0,0.005946]
[1718841875891,1.88945514,64980.0,64979.0,0.005946]
[1718841876096,1.90222009,64980.0,64979.0,0.005946]
[1718841877367,1.75642009,64980.0,64979.0,0.005946]
[1718841877564,1.88945514,64980.0,64979.0,0.005946]
[1718841877771,1.90222009,64980.0,64979.0,0.005946]
[1718841879107,1.90222009,64980.0,64979.0,0.00583754]
[1718841879313,2.21000709,64980.0,64979.0,0.00583754]
[1718841880314,2.21000709,64980.0,64979.0,0.00383754]
[1718841880519,2.21700709,64980.0,64979.0,0.00483754]
[1718841880649,2.26128017,64980.0,64979.0,0.00483754]
[1718841880851,1.95349317,64980.0,64979.0,0.00483754]
[1718841881056,1.94649317,64980.0,64979.0,0.00083754]
[1718841881254,1.95449317,64980.0,64979.0,0.00183754]
[1718841881466,1.86709317,64980.0,64979.0,0.00183754]
[1718841882226,1.87409317,64980.0,64979.0,0.00183754]
[1718841882430,1.86709317,64980.0,64979.0,0.00183754]
[1718841882776,1.87509317,64980.0,64979.0,0.00183754]
[1718841888637,1.72253903,64980.0,64979.0,0.00183754]
[1718841888859,1.70977408,64980.0,64979.0,0.00183754]
[1718841889086,1.40198708,64980.0,64979.0,0.14333754]
[1718841889296,1.37784681,64980.0,64979.0,0.14333754]
[1718841890526,1.43210329,64980.0,64979.0,0.14333754]
[1718841893765,1.43210329,64980.0,64979.0,0.00183754]
[1718841898436,1.37784681,64980.0,64979.0,0.00183754]
[1718841901510,0.24219281,64980.0,64979.0,0.12183754]
[1718841901724,0.04219281,64980.0,64979.0,0.56969366]
[1718841901907,0.00086,64989.0,64988.0,0.2614]
[1718841902111,0.00086,64989.0,64988.0,0.1414]
[1718841902112,0.82862,64989.0,64988.0,0.1414]
[1718841902471,0.82862,64989.0,64988.0,0.14266]
[1718841902472,1.136364,64989.0,64988.0,0.14266]
[1718841902860,0.82862,64989.0,64988.0,0.14266]
[1718841903300,0.00386,64989.0,64988.0,0.26266]
[1718841903415,0.06226,64989.0,64988.0,0.2614]
[1718841903767,0.05926,64989.0,64988.0,0.2614]
[1718841903970,0.05926,64989.0,64988.0,0.2634]
[1718841904170,0.05926,64989.0,64988.0,0.2434]
[1718841904392,0.15926,64989.0,64988.0,0.2614]
[1718841904617,0.16026,64989.0,64988.0,0.2464]
[1718841904807,0.314132,64989.0,64988.0,0.1464]
[1718841905010,0.314132,64989.0,64988.0,0.2664]
[1718841905561,0.314132,64989.0,64988.0,0.1464]
[1718841905960,0.315132,64989.0,64988.0,0.2544]
[1718841906452,0.315132,64989.0,64988.0,0.1544]
[1718841906824,0.622876,64989.0,64988.0,0.1544]
[1718841907936,0.93062,64989.0,64988.0,0.1544]
[1718841909236,0.87222,64989.0,64988.0,0.1544]
[1718841909456,0.00286,64989.0,64988.0,0.63083512]
[1718841909668,0.307685,65002.0,64988.0,0.63083512]
[1718841909669,0.1,64998.0,64996.0,0.12]
[1718841909864,0.153851,64998.0,64996.0,0.2575]
[1718841911007,0.00286,64997.0,64996.0,0.2575]
[1718841911526,0.00286,64997.0,64996.0,0.41006112]
[1718841911527,0.00486,64997.0,64996.0,0.41006112]
[1718841911671,0.00486,64997.0,64996.0,0.61391612]
[1718841912452,0.01276746,65013.0,65003.0,0.12]
[1718841912453,0.307642,65011.0,65003.0,0.12]
[1718841912651,0.307642,65011.0,65007.0,0.1435]
[1718841912652,0.462343,65008.0,65007.0,0.1435]
[1718841912848,0.562343,65008.0,65007.0,0.2435]
[1718841913480,0.561483,65008.0,65007.0,0.2635]
[1718841914497,0.307602,65019.0,65013.0,0.0638]
[1718841914702,0.153813,65014.0,65013.0,0.0638]
[1718841914963,0.153813,65014.0,65013.0,0.06908]
[1718841915156,0.461439,65014.0,65013.0,0.06908]
[1718841915663,0.461439,65014.0,65013.0,0.16908]
[1718841915782,0.461439,65014.0,65013.0,0.06908]
[1718841915999,0.461439,65014.0,65013.0,0.1638]
[1718841916403,0.561439,65014.0,65013.0,0.1638]
[1718841916918,0.561439,65014.0,65013.0,0.0658]
[1718841918418,0.869065,65014.0,65013.0,0.0678]
[1718841920076,1.4400578,65014.0,65013.0,0.004]
[1718841920898,1.7553838,65014.0,65013.0,0.004]
[1718841921123,2.00794492,65014.0,65013.0,0.004]
[1718841921299,2.22978492,65014.0,65013.0,0.002]
[1718841921680,2.27288492,65014.0,65013.0,0.002]
[1718841921907,2.27288492,65014.0,64993.0,0.1]
[1718841921908,0.769325,64992.0,64991.0,0.0618]
[1718841922111,0.153879,64986.0,64985.0,0.0618]
[1718841922358,0.561637,64986.0,64985.0,0.1118]
[1718841923483,0.869395,64986.0,64985.0,0.1148]
[1718841923703,0.561637,64986.0,64985.0,0.1148]
[1718841924473,0.869395,64986.0,64985.0,0.1198]
[1718841924664,0.58898608,64986.0,64985.0,0.1198]
[1718841924855,0.74286508,64986.0,64985.0,0.1118]
[1718841925056,0.43510708,64986.0,64985.0,0.1188]
[1718841925348,0.43510708,64986.0,64985.0,0.1158]
[1718841925547,0.43510708,64986.0,64985.0,0.1118]
[1718841925980,0.43510708,64986.0,64985.0,0.1148]
[1718841926386,0.43510708,64986.0,64985.0,0.1118]
[1718841926969,0.53510708,64986.0,64985.0,0.1178]
[1718841927486,0.53510708,64986.0,64985.0,0.1148]
[1718841927758,0.53510708,64986.0,64985.0,0.1178]
[1718841927966,0.92714939,64986.0,64985.0,0.006]
[1718841928163,1.07284939,64986.0,64985.0,0.006]
[1718841928622,1.38060739,64986.0,64985.0,0.006]
[1718841929027,1.38060739,64986.0,64985.0,0.003]
[1718841930066,0.769467,64980.0,64979.0,0.06093754]
[1718841930264,0.869467,64980.0,64979.0,0.00083754]
[1718841930501,1.177254,64980.0,64979.0,0.00083754]
[1718841931480,1.4406794,64980.0,64979.0,0.00083754]
[1718841931697,1.4416794,64980.0,64979.0,0.00983754]
[1718841931906,1.4510722,64980.0,64979.0,0.00983754]
[1718841932709,1.4520722,64980.0,64979.0,0.01783754]
[1718841934926,1.4510722,64980.0,64979.0,0.00883754]
[1718841935321,1.4500722,64980.0,64979.0,0.00183754]
[1718841935499,1.4570722,64980.0,64979.0,0.00183754]
[1718841935702,1.4640722,64980.0,64979.0,0.00283754]
[1718841936304,1.4570722,64980.0,64979.0,0.00183754]
[1718841936849,1.3463468,64980.0,64979.0,0.00283754]
[1718841941608,1.3393468,64980.0,64979.0,0.00183754]
[1718841942103,1.3453468,64980.0,64979.0,0.00283754]
[1718841942284,1.3383468,64980.0,64979.0,0.00183754]
[1718841942721,1.3443468,64980.0,64979.0,0.00283754]
[1718841947243,1.3443468,64980.0,64979.0,0.14743754]
[1718841947444,1.2569468,64980.0,64979.0,0.14743754]
[1718841948410,1.2509468,64980.0,64979.0,0.14643754]
[1718841948622,1.2489468,64980.0,64979.0,0.14543754]
[1718841949057,1.2499468,64980.0,64979.0,0.14543754]
[1718841949605,1.2559468,64980.0,64979.0,0.14643754]
[1718841949960,1.2509468,64980.0,64979.0,0.14643754]
[1718841950292,1.2559468,64980.0,64979.0,0.14643754]
[1718841950738,1.2499468,64980.0,64979.0,0.14543754]
[1718841950939,1.1916468,64980.0,64979.0,0.14543754]
[1718841951144,1.2539468,64980.0,64979.0,0.14543754]
[1718841951942,1.2449468,64980.0,64979.0,0.14543754]
[1718841952160,1.2499468,64980.0,64979.0,0.14543754]
[1718841952365,1.2539468,64980.0,64979.0,0.14543754]
[1718841952772,1.2489468,64980.0,64979.0,0.06483754]
[1718841953574,1.2539468,64980.0,64979.0,0.06483754]
[1718841953989,1.2499468,64980.0,64979.0,0.06483754]
[1718841954390,1.2529468,64980.0,64979.0,0.06483754]
[1718841955078,1.2479468,64980.0,64979.0,0.06483754]
[1718841955420,1.2519468,64980.0,64979.0,0.06483754]
[1718841955614,0.5780728,64980.0,64979.0,0.12083754]
[1718841955817,0.1163928,64980.0,64979.0,0.26663754]
[1718841956083,0.2702858,64980.0,64979.0,0.26663754]
[1718841956200,0.2662858,64980.0,64979.0,0.26663754]
[1718841956635,0.2702858,64980.0,64979.0,0.26663754]
[1718841957253,0.2672858,64980.0,64979.0,0.26663754]
[1718841957426,0.2672858,64980.0,64979.0,0.26863754]
[1718841958314,0.2632858,64980.0,64979.0,0.26863754]
[1718841958641,0.2632858,64980.0,64979.0,0.26963754]
[1718841961362,0.5710728,64980.0,64979.0,0.14963754]
[1718841961576,1.27550944,64980.0,64979.0,0.00383754]
[1718841961759,1.33380944,64980.0,64979.0,0.00383754]
[1718841961954,1.2449468,64980.0,64979.0,0.00383754]
[1718841962577,1.2449468,64980.0,64979.0,0.00283754]
[1718841962817,1.2449468,64980.0,64979.0,0.00083754]
[1718841963019,1.2459468,64980.0,64979.0,0.00083754]
[1718841963673,1.37054148,64980.0,64979.0,0.00083754]
[1718841964243,1.1876468,64980.0,64979.0,0.00083754]
[1718841964674,1.2449468,64980.0,64979.0,0.00083754]
[1718841964827,1.2459468,64980.0,64979.0,0.00083754]
[1718841965369,1.2449468,64980.0,64979.0,0.00083754]
[1718841965928,1.2459468,64980.0,64979.0,0.00083754]
[1718841966325,1.2449468,64980.0,64979.0,0.00083754]
[1718841968031,1.2449468,64980.0,64979.0,0.00183754]
[1718841968232,1.2449468,64980.0,64979.0,0.00383754]
[1718841969244,1.2449468,64980.0,64979.0,0.00283754]
[1718841969803,1.2489468,64980.0,64979.0,0.00083754]
[1718841969950,1.2489468,64980.0,64979.0,0.00183754]
[1718841970556,1.1906468,64980.0,64979.0,0.00183754]
[1718841970764,1.2489468,64980.0,64979.0,0.00183754]
[1718841971138,1.2449468,64980.0,64979.0,0.00183754]
[1718841971363,1.2469468,64980.0,64979.0,0.00183754]
[1718841971998,1.2449468,64980.0,64979.0,0.00183754]
[1718841972739,1.1866468,64980.0,64979.0,0.00183754]
[1718841972932,1.2449468,64980.0,64979.0,0.00183754]
[1718841973354,1.1866468,64980.0,64979.0,0.00183754]
[1718841973533,1.2449468,64980.0,64979.0,0.00183754]
[1718841974320,1.61231304,64980.0,64979.0,0.00183754]
[1718841975622,1.61231304,64980.0,64979.0,0.00083754]
[1718841975990,1.61431304,64980.0,64979.0,0.00083754]
[1718841976124,1.61631304,64980.0,64979.0,0.00083754]
[1718841976467,1.71631304,64980.0,64979.0,0.00083754]
[1718841976853,1.385082,64978.0,64972.0,0.009471]
[1718841977057,1.49612537,64978.0,64972.0,0.009471]
[1718841977658,1.55442537,64978.0,64972.0,0.009471]
[1718841978470,1.60339537,64978.0,64972.0,0.009471]
[1718841978914,1.66169537,64978.0,64977.0,0.01046]
[1718841979118,1.81424951,64978.0,64977.0,0.00946]
[1718841979355,1.81424951,64978.0,64961.0,0.52975034]
[1718841979356,0.153933,64963.0,64961.0,0.52975034]
[1718841979575,0.827967,64963.0,64962.0,0.15216]
[1718841979792,0.93899917,64963.0,64962.0,0.15216]
[1718841980239,1.34076609,64963.0,64962.0,0.00946]
[1718841980997,1.34176609,64963.0,64962.0,0.01746]
[1718841981647,1.28346609,64963.0,64962.0,0.02646]
[1718841981823,1.34276609,64963.0,64962.0,0.02646]
[1718841984671,1.28446609,64963.0,64962.0,0.02646]
[1718841984961,1.34276609,64963.0,64962.0,0.02646]
[1718841985161,1.24886617,64963.0,64962.0,0.02646]
[1718841985359,0.88269917,64963.0,64962.0,0.02646]
[1718841985529,0.88269917,64963.0,64962.0,0.17096]
[1718841986846,1.19056617,64963.0,64962.0,0.17096]
[1718841988540,0.88269917,64963.0,64962.0,0.17096]
[1718841989520,1.19056617,64963.0,64962.0,0.17096]
[1718841989721,0.88269917,64963.0,64962.0,0.17096]
[1718841989926,0.88269917,64963.0,64962.0,0.27096]
[1718841990166,0.94099917,64963.0,64962.0,0.27096]
[1718841990470,0.94099917,64963.0,64962.0,0.29096]
[1718841991246,0.57483217,64963.0,64962.0,0.29096]
[1718841993359,0.5928917,64963.0,64962.0,0.17096]
[1718841994466,0.9007587,64963.0,64962.0,0.17096]
[1718841996721,0.9007587,64963.0,64962.0,0.16786]
[1718841996927,0.9590587,64963.0,64962.0,0.16786]
[1718841997891,0.9590587,64963.0,64962.0,0.26786]
[1718841998581,0.9590587,64963.0,64962.0,0.28786]
[1718841998784,0.5928917,64963.0,64962.0,0.28786]
[1718841998990,0.2850247,64963.0,64962.0,0.28786]
[1718842000638,0.11303217,64963.0,64962.0,0.33786]
[1718842000821,0.01303217,64963.0,64962.0,0.64435712]
[1718842000999,0.01303217,64963.0,64962.0,0.96222912]
[1718842001240,0.002,64963.0,64962.0,1.27010112]
[1718842001508,0.00086,64972.0,64971.0,0.3117]
[1718842001705,0.00086,64972.0,64971.0,0.46426112]
[1718842003676,0.0116424,64972.0,64971.0,0.46426112]
[1718842003878,0.0116424,64972.0,64971.0,0.47026112]
[1718842004050,0.0116424,64972.0,64971.0,0.46426112]
[1718842004457,0.00086,64972.0,64971.0,0.93800412]
[1718842004654,0.00186,64972.0,64971.0,0.95000412]
[1718842004857,0.00186,64972.0,64971.0,0.96000412]
[1718842005042,0.00186,64972.0,64971.0,1.26783312]
[1718842006661,0.00186,64972.0,64971.0,1.57566212]
[1718842007061,0.1458,64993.0,64971.0,1.57566212]
[1718842007062,0.0518,65000.0,64986.0,0.01]
[1718842007266,0.561616,64989.0,64988.0,0.1]
[1718842007468,0.561616,64989.0,64987.0,0.1364]
[1718842007469,0.461623,64988.0,64987.0,0.1364]
[1718842007721,0.461623,64988.0,64987.0,0.2364]
[1718842008640,0.01,64989.0,64987.0,0.2864]
[1718842008850,0.153861,64994.0,64993.0,0.1]
[1718842009093,0.153857,64996.0,64994.0,0.1]
[1718842009301,0.153857,64996.0,64995.0,0.1]
[1718842009495,0.17199179,64996.0,64995.0,0.1]
[1718842009939,0.17199179,64996.0,64994.0,0.1]
[1718842010148,0.153858,64995.0,64993.0,0.2466]
[1718842010359,0.32584679,64996.0,64993.0,0.1466]
[1718842010562,0.153857,64995.0,64993.0,0.2466]
[1718842010729,0.15386,64994.0,64993.0,0.2466]
[1718842010931,0.25386,64994.0,64993.0,0.2466]
[1718842011134,0.25386,64994.0,64993.0,0.2666]
[1718842011431,0.25386,64994.0,64993.0,0.1466]
[1718842012280,0.25386,64994.0,64993.0,0.1516]
[1718842012428,0.25386,64994.0,64993.0,0.1576]
[1718842012629,0.25386,64994.0,64993.0,0.2776]
[1718842012827,0.25386,64994.0,64993.0,0.1576]
[1718842014777,0.56158,64994.0,64993.0,0.1576]
[1718842017310,0.8693,64994.0,64993.0,0.1576]
[1718842017549,0.8693,64994.0,64993.0,0.011]
[1718842018535,0.8693,64994.0,64993.0,0.006]
[1718842018781,0.461595,64992.0,64991.0,0.05]
[1718842018988,0.153871,64990.0,64987.0,0.15256112]
[1718842019203,0.461694,64978.0,64977.0,0.1]
[1718842019407,0.461694,64978.0,64975.0,0.02]
[1718842019408,0.153902,64976.0,64975.0,0.15256112]
[1718842019609,0.561707,64976.0,64975.0,0.15256112]
[1718842021183,0.869512,64976.0,64975.0,0.15256112]
[1718842021771,0.561707,64976.0,64975.0,0.27956112]
[1718842022309,0.57511529,64976.0,64975.0,0.27956112]
[1718842022670,0.57611529,64976.0,64975.0,0.28656112]
[1718842026469,0.11440829,64976.0,64975.0,0.42936112]
[1718842026665,0.01440829,64976.0,64975.0,0.64326612]
[1718842026902,0.001,64976.0,64975.0,0.48936112]
[1718842027530,0.407774,64983.0,64982.0,0.2312]
[1718842027731,0.407774,64983.0,64982.0,0.3128]
[1718842028192,0.56166,64983.0,64982.0,0.3128]
[1718842029269,0.56166,64983.0,64982.0,0.3168]
[1718842029923,0.253886,64983.0,64982.0,0.3168]
[1718842030438,0.1,64983.0,64982.0,0.3168]
[1718842030656,0.1,64984.0,64983.0,0.12]
[1718842031854,0.1,64984.0,64983.0,0.123]
[1718842032200,0.1,64984.0,64983.0,0.129]
[1718842032401,0.1,64984.0,64983.0,0.126]
[1718842032603,0.1,64984.0,64983.0,0.131]
[1718842033237,0.253884,64984.0,64983.0,0.131]
[1718842034466,0.24205514,64986.0,64983.0,0.131]
[1718842034806,0.153882,64985.0,64984.0,0.12]
[1718842035987,0.153879,64986.0,64984.0,0.12]
[1718842036189,0.153879,64986.0,64985.0,0.12]
[1718842036589,0.253879,64986.0,64985.0,0.12]
[1718842037402,0.26727367,64986.0,64985.0,0.12]
[1718842038301,0.26727367,64986.0,64985.0,0.123]
[1718842038904,0.57503167,64986.0,64985.0,0.103]
[1718842039085,0.26727367,64986.0,64985.0,0.106]
[1718842039566,0.32557367,64986.0,64985.0,0.106]
[1718842040590,0.63333167,64986.0,64985.0,0.106]
[1718842040804,0.63333167,64986.0,64982.0,0.000946]
[1718842040805,0.461658,64983.0,64982.0,0.000946]
[1718842041099,0.96983,64983.0,64982.0,0.000946]
[1718842041303,0.461722,64974.0,64973.0,0.1]
[1718842041501,0.927837,64974.0,64973.0,0.1]
[1718842041706,0.94123167,64974.0,64973.0,0.1]
[1718842042117,0.461736,64972.0,64970.0,0.1]
[1718842042327,0.312214,64971.0,64970.0,0.15]
[1718842042530,1.24909567,64971.0,64970.0,0.15]
[1718842043528,1.19079567,64971.0,64970.0,0.05]
[1718842043709,0.769585,64970.0,64969.0,0.15]
[1718842043912,0.88295848,64970.0,64969.0,0.15]
[1718842045335,0.88495848,64970.0,64969.0,0.162]
[1718842046348,0.88495848,64970.0,64969.0,0.112]
[1718842046527,0.88495848,64970.0,64969.0,0.162]
[1718842046908,1.19279248,64970.0,64969.0,0.012]
[1718842049050,1.2745942,64970.0,64969.0,0.012]
[1718842049804,1.6342282,64970.0,64969.0,0.012]
[1718842050739,1.6332282,64970.0,64969.0,0.006]
[1718842051171,1.077534,64963.0,64962.0,0.00946]
[1718842051491,1.33676579,64963.0,64962.0,0.00946]
[1718842053835,1.33676579,64963.0,64962.0,0.01246]
[1718842054150,1.33676579,64963.0,64962.0,0.01546]
[1718842055545,1.37886579,64963.0,64962.0,0.01546]
[1718842055758,1.51675237,64963.0,64962.0,0.01546]
[1718842055983,1.37886579,64963.0,64962.0,0.01546]
[1718842057467,1.37886579,64963.0,64962.0,0.01246]
[1718842057672,1.37886579,64963.0,64962.0,0.00946]
[1718842057930,1.37886579,64963.0,64962.0,0.01546]
[1718842058557,1.37886579,64963.0,64962.0,0.01246]
[1718842058980,1.23296579,64963.0,64962.0,0.01246]
[1718842059119,1.37886579,64963.0,64962.0,0.01246]
[1718842059740,1.37886579,64963.0,64962.0,0.01546]
[1718842060900,1.83431937,64963.0,64962.0,0.01546]
[1718842061237,1.69643279,64963.0,64962.0,0.01546]
[1718842061442,1.64463279,64963.0,64962.0,0.01546]
[1718842061919,1.64463279,64963.0,64962.0,0.01246]
[1718842062119,1.64563279,64963.0,64962.0,0.00946]
[1718842062320,1.64663279,64963.0,64962.0,0.00946]
[1718842062660,1.64463279,64963.0,64962.0,0.00946]
[1718842063092,1.64563279,64963.0,64962.0,0.00946]
[1718842063309,1.64463279,64963.0,64962.0,0.00946]
[1718842063888,1.66288765,64963.0,64962.0,0.00946]
[1718842064775,1.66388765,64963.0,64962.0,0.00946]
[1718842065391,1.51698765,64963.0,64962.0,0.00946]
[1718842065543,1.57538765,64963.0,64962.0,0.00946]
[1718842071315,1.67109861,64963.0,64962.0,0.00946]
[1718842071648,1.57531546,64963.0,64962.0,0.00946]
[1718842075076,1.62711546,64963.0,64962.0,0.00946]
[1718842075477,2.12709646,64963.0,64962.0,0.00946]
[1718842075684,2.07491182,64963.0,64962.0,0.00946]
[1718842077663,2.07737182,64963.0,64962.0,0.00946]
[1718842077874,2.22992596,64963.0,64962.0,0.00946]
[1718842078499,2.11287996,64963.0,64962.0,0.00946]
[1718842078694,2.17127996,64963.0,64962.0,0.00946]
[1718842079244,1.86566782,64963.0,64962.0,0.00946]
[1718842079487,1.65421682,64963.0,64962.0,0.00946]
[1718842079820,1.65421682,64963.0,64962.0,0.09086]
[1718842079821,1.26990846,64963.0,64962.0,0.09086]
[1718842080496,1.21150846,64963.0,64962.0,0.09086]
[1718842080739,1.26744846,64963.0,64962.0,0.09086]
[1718842090925,1.2820717,64963.0,64962.0,0.09086]
[1718842093565,1.46484154,64963.0,64962.0,0.00946]
[1718842093772,0.769775,64954.0,64947.0,0.0654]
[1718842093973,0.9438041,64954.0,64947.0,0.0654]
[1718842094976,1.1933141,64954.0,64947.0,0.0654]
[1718842095162,1.2517141,64954.0,64947.0,0.0654]
[1718842095367,1.1933141,64954.0,64948.0,0.1]
[1718842095572,1.2517141,64954.0,64949.0,0.07628172]
[1718842096832,1.2517141,64954.0,64949.0,0.17628172]
[1718842097232,1.2517141,64954.0,64949.0,0.07628172]
[1718842097996,1.2517141,64954.0,64949.0,0.17628172]
[1718842100115,1.2517141,64954.0,64949.0,0.07628172]
[1718842102691,1.45606824,64954.0,64940.0,0.1458]
[1718842102892,1.76397824,64954.0,64940.0,0.1458]
[1718842104538,1.76397824,64954.0,64937.0,0.0627]
[1718842104539,1.077884,64942.0,64937.0,0.0627]
[1718842104741,1.236284,64942.0,64937.0,0.0627]
[1718842104895,1.25189216,64942.0,64937.0,0.0627]
[1718842105853,1.25689216,64942.0,64937.0,0.0627]
[1718842106018,1.25189216,64942.0,64937.0,0.0627]
[1718842106218,1.25389216,64942.0,64937.0,0.0627]
[1718842106419,1.25589216,64942.0,64937.0,0.0627]
[1718842106734,1.25389216,64942.0,64937.0,0.0627]
[1718842107153,1.25589216,64942.0,64937.0,0.0627]
[1718842109018,1.25589216,64942.0,64931.0,0.009471]
[1718842109019,1.7662133,64942.0,64931.0,0.009471]
[1718842109223,1.078049,64932.0,64931.0,0.009471]
[1718842109350,1.236449,64932.0,64931.0,0.009471]
[1718842109549,1.25200785,64932.0,64931.0,0.009471]
[1718842112096,1.25200785,64932.0,64931.0,0.013471]
[1718842112319,1.35200785,64932.0,64931.0,0.013471]
[1718842112520,1.25200785,64932.0,64931.0,0.013471]
[1718842112738,1.35200785,64932.0,64931.0,0.017471]
[1718842113185,1.25200785,64932.0,64931.0,0.017471]
[1718842113569,1.35200785,64932.0,64931.0,0.017471]
[1718842114703,1.25200785,64932.0,64931.0,0.017471]
[1718842115056,1.35200785,64932.0,64931.0,0.017471]
[1718842115643,1.25200785,64932.0,64931.0,0.017471]
[1718842116045,1.35200785,64932.0,64931.0,0.017471]
[1718842122311,1.29360785,64932.0,64931.0,0.017471]
[1718842122552,1.35200785,64932.0,64931.0,0.017471]
[1718842122753,1.35200785,64932.0,64931.0,0.117471]
[1718842123546,0.13365894,64932.0,64931.0,0.35505272]
[1718842123786,0.23365894,64932.0,64931.0,1.02964184]
[1718842124005,0.153986,64941.0,64940.0,0.01]
[1718842124006,0.1,64941.0,64940.0,0.01]
[1718842124209,0.161716,64943.0,64942.0,0.12]
[1718842124378,0.061716,64943.0,64942.0,0.2613]
[1718842124588,0.07980107,64943.0,64942.0,0.2613]
[1718842124796,0.061716,64943.0,64942.0,0.46386112]
[1718842124998,0.061716,64943.0,64942.0,0.92581112]
[1718842125227,0.061716,64943.0,64942.0,0.61784412]
[1718842125548,0.153965,64950.0,64949.0,0.2613]
[1718842126949,0.253965,64950.0,64949.0,0.2613]
[1718842127282,0.2731565,64950.0,64949.0,0.2733]
[1718842128100,0.2741565,64950.0,64949.0,0.2863]
[1718842128508,0.2750165,64950.0,64949.0,0.2863]
[1718842128912,0.1210515,64950.0,64949.0,0.2863]
[1718842129133,0.00286,64950.0,64949.0,0.48886112]
[1718842129565,0.0157842,64950.0,64949.0,0.48886112]
[1718842129834,0.00286,64950.0,64949.0,0.48886112]
[1718842129996,0.0157842,64950.0,64949.0,0.48886112]
[1718842130539,0.0147842,64950.0,64949.0,0.47686112]
[1718842131007,0.0157842,64950.0,64949.0,0.49086112]
[1718842131177,0.0147842,64950.0,64949.0,0.47786112]
[1718842131911,0.0157842,64950.0,64949.0,0.49186112]
[1718842140876,0.1697482,64950.0,64949.0,0.49186112]
[1718842141303,0.2697482,64950.0,64949.0,0.49186112]
[1718842141695,0.2697482,64950.0,64949.0,0.44186112]
[1718842141903,0.2697482,64950.0,64949.0,0.49186112]
[1718842143191,0.8856062,64950.0,64949.0,0.2193]
[1718842143869,0.8856062,64950.0,64949.0,0.028]
[1718842143870,1.32054701,64950.0,64949.0,0.028]
[1718842144206,1.42054701,64950.0,64949.0,0.028]
[1718842145025,1.41954701,64950.0,64949.0,0.014]
[1718842145626,0.64972501,64950.0,64943.0,0.1]
[1718842145830,0.828292,64944.0,64943.0,0.1]
[1718842146068,0.94130321,64944.0,64943.0,0.1]
[1718842146903,0.94130321,64944.0,64943.0,0.106]
[1718842147240,0.94230321,64944.0,64943.0,0.12]
[1718842147442,0.94230321,64944.0,64943.0,0.114]
[1718842147813,0.94330321,64944.0,64943.0,0.128]
[1718842150333,0.88490321,64944.0,64943.0,0.148]
[1718842150531,0.88490321,64944.0,64943.0,0.2242]
[1718842152227,0.57694621,64944.0,64943.0,0.2878]
[1718842152660,0.11501121,64944.0,64943.0,0.44036112]
[1718842152869,0.002,64944.0,64943.0,0.45036112]
[1718842153027,0.11499365,64944.0,64943.0,0.45036112]
[1718842154231,0.01499365,64944.0,64943.0,0.45036112]
[1718842156878,0.01499365,64944.0,64943.0,0.44036112]
[1718842157048,0.03335922,64944.0,64943.0,0.44036112]
[1718842157427,0.01499365,64944.0,64943.0,0.44036112]
[1718842159378,0.01499365,64944.0,64943.0,0.59434212]
[1718842159702,0.002,64944.0,64943.0,0.59434212]
[1718842159904,0.002,64944.0,64943.0,0.44036112]
[1718842160572,0.002,64944.0,64943.0,0.59434212]
[1718842160745,0.01499365,64944.0,64943.0,0.59434212]
[1718842160956,0.002,64944.0,64943.0,0.59434212]
[1718842161270,0.00286,64944.0,64943.0,0.59434212]
[1718842161449,0.01585365,64944.0,64943.0,0.59434212]
[1718842164137,0.01585365,64944.0,64943.0,0.44036112]
[1718842166239,0.16983165,64944.0,64943.0,0.148]
[1718842166444,0.53581613,64944.0,64943.0,0.148]
[1718842166611,0.63581613,64944.0,64943.0,0.148]
[1718842167035,0.63581613,64944.0,64943.0,0.028]
[1718842167443,0.94377313,64944.0,64943.0,0.028]
[1718842167877,1.25173013,64944.0,64943.0,0.028]
[1718842170460,1.25073013,64944.0,64943.0,0.014]
[1718842170659,1.077867,64943.0,64942.0,0.05]
[1718842170806,1.23961114,64943.0,64942.0,0.05]
[1718842171015,1.249254,64943.0,64942.0,0.05]
[1718842172756,1.249254,64943.0,64942.0,0.06]
[1718842173640,1.249254,64943.0,64942.0,0.01]
[1718842173955,1.349254,64943.0,64942.0,0.06]
[1718842175637,1.349254,64943.0,64942.0,0.05]
[1718842175847,1.351254,64943.0,64942.0,0.05]
[1718842176049,1.197273,64943.0,64942.0,0.05]
[1718842176297,1.196273,64943.0,64942.0,0.05]
[1718842176473,1.195273,64943.0,64942.0,0.05]